fUST/lending_fUST_20241222
["ID","MTS","AMOUNT","RATE_DAILY","PERIOD"]
[346288088,1734871838020,-40508.1324709,0.00013,2]
[346288512,1734871843044,-6793.057791,0.00013,2]
[346288540,1734871964094,207.84988525,0.0001,2]
[346288541,1734871992818,3000.0,0.00013,30]
[346288542,1734871993300,3000.0,0.0001301,30]
[346288543,1734871993641,3000.0,0.0001302,30]
[346288544,1734871993994,3000.0,0.0001303,30]
[346288546,1734871994548,3000.0,0.0001304,30]
[346288547,1734871994735,3000.0,0.0001305,30]
[346288548,1734871995130,3000.0,0.0001306,30]
[346288549,1734871995447,3000.0,0.0001307,30]
[346288550,1734871995841,3000.0,0.0001308,30]
[346288551,1734871996182,3000.0,0.0001309,30]
[346288552,1734871996527,3000.0,0.000131,30]
[346288553,1734871996865,3000.0,0.0001311,30]
[346288554,1734871997186,3000.0,0.0001312,30]
[346288555,1734871997539,4266.714134,0.0001313,30]
[346288562,1734872925875,10000.0,0.00022,120]
[346288563,1734872933867,10000.0,0.0002,90]
[346288564,1734872940721,10000.0,0.0002,60]
[346288565,1734872951764,5000.0,0.00022,120]
[346288641,1734873032654,-172.556,0.00011215,2]
[346288643,1734873032664,-172.556,0.00011328,2]
[346288645,1734873032673,-300.0,0.00012031,2]
[346288647,1734873032684,-300.0,0.00012031,2]
[346288649,1734873032695,-24900.0,0.00012032,2]
[346288651,1734873032704,-279.435,0.0001235,2]
[346288676,1734873032933,-297.26927146,0.000128,2]
[346288677,1734873032944,-500.0,0.00012819,2]
[346288679,1734873032954,-500.0,0.00012819,2]
[346288681,1734873032963,-500.0,0.00012819,2]
[346288683,1734873032972,-500.0,0.00012819,2]
[346288685,1734873032985,-500.0,0.00012819,2]
[346288687,1734873032995,-559.67992922,0.00012819,2]
[346288689,1734873033004,-500.0,0.00012819,2]
[346288691,1734873033014,-500.0,0.00012819,2]
[346288693,1734873033024,-500.0,0.00012819,2]
[346288695,1734873033035,-500.0,0.00012819,2]
[346288697,1734873033044,-500.0,0.00012819,2]
[346288699,1734873033054,-500.0,0.00012819,2]
[346288701,1734873033063,-500.0,0.00012819,2]
[346288703,1734873033073,-562.07238533,0.00012819,2]
[346288705,1734873033082,-274.72988973,0.00012819,2]
[346288707,1734873033091,-500.0,0.00012819,2]
[346288709,1734873033100,-500.0,0.00012819,2]
[346288710,1734873033109,-354.92293275,0.00012819,2]
[346288713,1734873033119,-13299.71422651,0.0001282,2]
[346288738,1734873033351,-21184.28577349,0.0001282,2]
[346288740,1734873033361,-153.3554759,0.000129,2]
[346288742,1734873033371,-2817.7601814,0.000129,2]
[346288744,1734873033382,-500.0,0.00012973,2]
[346288746,1734873033391,-197.495,0.00012973,2]
[346288748,1734873033401,-14587.17972912,0.00013,2]
[346289051,1734873040464,-5163.10718688,0.0001287,2]
[346289052,1734873040477,-132299.27724607,0.00013,2]
[346289053,1734873040490,-114824.75026784,0.00013,2]
[346289184,1734874232665,-259.75,0.00011863,2]
[346289186,1734874232675,-300.0,0.00012139,2]
[346289188,1734874232684,-300.0,0.00012139,2]
[346289191,1734874232693,-500.0,0.0001214,2]
[346289193,1734874232703,-500.0,0.0001214,2]
[346289194,1734874232712,-500.0,0.0001214,2]
[346289197,1734874232722,-500.0,0.0001214,2]
[346289198,1734874232731,-500.0,0.0001214,2]
[346289199,1734874232741,-500.0,0.0001214,2]
[346289201,1734874232750,-500.0,0.0001214,2]
[346289202,1734874232759,-500.0,0.0001214,2]
[346289203,1734874232768,-500.0,0.0001214,2]
[346289204,1734874232778,-500.0,0.0001214,2]
[346289206,1734874232788,-500.0,0.0001214,2]
[346289208,1734874232797,-500.0,0.0001214,2]
[346289209,1734874232806,-500.0,0.0001214,2]
[346289211,1734874232815,-500.0,0.0001214,2]
[346289212,1734874232825,-500.0,0.0001214,2]
[346289214,1734874232834,-500.0,0.0001214,2]
[346289216,1734874232844,-500.0,0.0001214,2]
[346289217,1734874232853,-500.0,0.0001214,2]
[346289218,1734874232863,-500.0,0.0001214,2]
[346289219,1734874232874,-500.0,0.0001214,2]
[346289220,1734874232884,-500.0,0.0001214,2]
[346289221,1734874232893,-505.69,0.0001214,2]
[346289222,1734874232902,-500.0,0.0001214,2]
[346289223,1734874232911,-500.0,0.0001214,2]
[346289224,1734874232920,-500.0,0.0001214,2]
[346289225,1734874232929,-500.0,0.0001214,2]
[346289226,1734874232940,-500.0,0.0001214,2]
[346289227,1734874232948,-500.0,0.0001214,2]
[346289228,1734874232958,-500.0,0.0001214,2]
[346289229,1734874232967,-463.8,0.0001214,2]
[346289230,1734874232977,-281.379,0.0001235,2]
[346289231,1734874232985,-155.0,0.00012847,2]
[346289232,1734874232995,-155.0,0.00012847,2]
[346289233,1734874233004,-155.0,0.00012847,2]
[346289234,1734874233013,-155.0,0.00012847,2]
[346289235,1734874233022,-171.0,0.00012847,2]
[346289236,1734874233036,-166.17,0.00012847,2]
[346289237,1734874233046,-155.0,0.00012847,2]
[346289238,1734874233056,-155.0,0.00012847,2]
[346289239,1734874233064,-155.0,0.00012847,2]
[346289240,1734874233074,-155.0,0.00012847,2]
[346289241,1734874233083,-155.0,0.00012847,2]
[346289242,1734874233093,-160.01,0.00012847,2]
[346289243,1734874233103,-348.11452924,0.0001287,2]
[346289244,1734874233116,-356.39865465,0.0001287,2]
[346289245,1734874233125,-500.0,0.0001287,2]
[346289246,1734874233135,-500.0,0.0001287,2]
[346289247,1734874233144,-500.0,0.0001287,2]
[346289248,1734874233154,-500.0,0.0001287,2]
[346289249,1734874233163,-500.0,0.0001287,2]
[346289250,1734874233173,-500.0,0.0001287,2]
[346289251,1734874233183,-500.0,0.0001287,2]
[346289252,1734874233192,-500.0,0.0001287,2]
[346289253,1734874233202,-500.0,0.0001287,2]
[346289254,1734874233211,-500.0,0.0001287,2]
[346289255,1734874233221,-500.0,0.0001287,2]
[346289256,1734874233230,-500.0,0.0001287,2]
[346289257,1734874233240,-500.0,0.0001287,2]
[346289258,1734874233250,-500.0,0.0001287,2]
[346289259,1734874233259,-500.0,0.0001287,2]
[346289260,1734874233268,-500.0,0.0001287,2]
[346289261,1734874233278,-500.0,0.0001287,2]
[346289262,1734874233287,-500.0,0.0001287,2]
[346289263,1734874233297,-500.0,0.0001287,2]
[346289264,1734874233306,-500.0,0.0001287,2]
[346289265,1734874233316,-500.0,0.0001287,2]
[346289266,1734874233327,-500.0,0.0001287,2]
[346289267,1734874233336,-283.14201608,0.0001287,2]
[346289268,1734874233346,-500.0,0.0001287,2]
[346289269,1734874233356,-500.0,0.0001287,2]
[346289270,1734874233365,-500.0,0.0001287,2]
[346289271,1734874233375,-500.0,0.0001287,2]
[346289272,1734874233386,-500.0,0.0001287,2]
[346289273,1734874233396,-500.0,0.0001287,2]
[346289274,1734874233405,-500.0,0.0001287,2]
[346289275,1734874233415,-500.0,0.0001287,2]
[346289276,1734874233424,-500.0,0.0001287,2]
[346289277,1734874233434,-500.0,0.0001287,2]
[346289278,1734874233444,-500.0,0.0001287,2]
[346289279,1734874233454,-500.0,0.0001287,2]
[346289280,1734874233463,-500.0,0.0001287,2]
[346289281,1734874233473,-500.0,0.0001287,2]
[346289282,1734874233483,-500.0,0.0001287,2]
[346289283,1734874233493,-500.0,0.0001287,2]
[346289284,1734874233503,-500.0,0.0001287,2]
[346289285,1734874233512,-500.0,0.0001287,2]
[346289286,1734874233522,-500.0,0.0001287,2]
[346289287,1734874233532,-500.0,0.0001287,2]
[346289288,1734874233542,-500.0,0.0001287,2]
[346289289,1734874233551,-500.0,0.0001287,2]
[346289290,1734874233561,-500.0,0.0001287,2]
[346289291,1734874233570,-500.0,0.0001287,2]
[346289292,1734874233580,-380.40395072,0.0001287,2]
[346289293,1734874233589,-500.0,0.0001287,2]
[346289294,1734874233599,-500.0,0.0001287,2]
[346289295,1734874233610,-500.0,0.0001287,2]
[346289296,1734874233619,-500.0,0.0001287,2]
[346289297,1734874233628,-500.0,0.0001287,2]
[346289298,1734874233638,-500.0,0.0001287,2]
[346289299,1734874233647,-500.0,0.0001287,2]
[346289300,1734874233657,-500.0,0.0001287,2]
[346289301,1734874233666,-500.0,0.0001287,2]
[346289302,1734874233676,-500.0,0.0001287,2]
[346289303,1734874233686,-500.0,0.0001287,2]
[346289304,1734874233696,-500.0,0.0001287,2]
[346289305,1734874233707,-152.31636131,0.0001287,2]
[346289306,1734874233719,-347.68363869,0.0001287,2]
[346289307,1734874233730,-500.0,0.0001287,2]
[346289308,1734874233740,-500.0,0.0001287,2]
[346289309,1734874233751,-500.0,0.0001287,2]
[346289310,1734874233761,-500.0,0.0001287,2]
[346289311,1734874233771,-500.0,0.0001287,2]
[346289312,1734874233780,-500.0,0.0001287,2]
[346289313,1734874233790,-500.0,0.0001287,2]
[346289314,1734874233800,-500.0,0.0001287,2]
[346289315,1734874233810,-200.0,0.0001287,2]
[346289316,1734874233820,-500.0,0.0001287,2]
[346289317,1734874233829,-349.05903176,0.0001287,2]
[346289318,1734874233841,-224.57652469,0.0001287,2]
[346289319,1734874233851,-500.0,0.0001287,2]
[346289320,1734874233861,-500.0,0.0001287,2]
[346289321,1734874233872,-500.0,0.0001287,2]
[346289322,1734874233882,-500.0,0.0001287,2]
[346289323,1734874233892,-500.0,0.0001287,2]
[346289324,1734874233901,-500.0,0.0001287,2]
[346289325,1734874233911,-500.0,0.0001287,2]
[346289326,1734874233921,-500.0,0.0001287,2]
[346289327,1734874233931,-500.0,0.0001287,2]
[346289328,1734874233942,-500.0,0.0001287,2]
[346289329,1734874233951,-500.0,0.0001287,2]
[346289330,1734874233961,-500.0,0.0001287,2]
[346289331,1734874233971,-500.0,0.0001287,2]
[346289332,1734874233980,-500.0,0.0001287,2]
[346289333,1734874233990,-295.36454662,0.00012875,2]
[346289334,1734874234000,-11919.24892869,0.00012876,2]
[346289384,1734874238722,-423.79166931,0.00012876,2]
[346289574,1734874240681,-5164.26052375,0.00012876,2]
[346290231,1734874247075,-1077.85826883,0.00012876,2]
[346290233,1734874247088,-5942.45537834,0.00012876,2]
[346290810,1734875432840,-4069.1109763,0.0001207,2]
[346290812,1734875432850,-300.0,0.00012294,2]
[346290814,1734875432860,-152.0,0.00012295,2]
[346290816,1734875432869,-152.0,0.00012295,2]
[346290818,1734875432878,-152.0,0.00012295,2]
[346290820,1734875432887,-152.0,0.00012295,2]
[346290822,1734875432897,-152.0,0.00012295,2]
[346290824,1734875432906,-152.0,0.00012295,2]
[346290826,1734875432915,-153.0,0.00012295,2]
[346290828,1734875432925,-269.8,0.0001235,2]
[346290830,1734875432934,-2883.85579062,0.000129,2]
[346290832,1734875432943,-4439.81801594,0.00012902,2]
[346291393,1734875438602,-533.0,0.00012902,2]
[346291395,1734875438612,-189.834,0.00012973,2]
[346291397,1734875438622,-23892.3329673,0.00013,2]
[346292135,1734875594919,150.0,0.00013,30]
[346292136,1734875794609,10000.0,0.00022,120]
[346292137,1734875836293,8285.14,0.00022,120]
[346292139,1734876059722,3538.72324474,0.00022,120]
[346292193,1734876635765,-207.0,0.00011909,2]
[346292195,1734876635776,-207.0,0.00012272,2]
[346292197,1734876635785,-258.384,0.0001235,2]
[346292199,1734876635796,-372.74984501,0.000125,2]
[346292209,1734876635882,-127.25015499,0.000125,2]
[346292211,1734876635892,-500.0,0.000125,2]
[346292213,1734876635902,-500.0,0.000125,2]
[346292216,1734876635911,-154.6367148,0.00012869,2]
[346292218,1734876635921,-172.53134382,0.00012873,2]
[346292220,1734876635933,-2595.47021154,0.000129,2]
[346292222,1734876635943,-166.17184154,0.000129,2]
[346292224,1734876635953,-300.0,0.00012912,2]
[346292226,1734876635963,-317.21611088,0.00012913,2]
[346292228,1734876635973,-183.25699303,0.00012913,2]
[346292230,1734876635983,-500.0,0.00012913,2]
[346292232,1734876635992,-500.0,0.00012913,2]
[346292234,1734876636002,-342.53843002,0.00012913,2]
[346292236,1734876636012,-177.22663834,0.00012913,2]
[346292238,1734876636022,-500.0,0.00012913,2]
[346292240,1734876636031,-500.0,0.00012913,2]
[346292242,1734876636041,-500.0,0.00012913,2]
[346292244,1734876636050,-500.0,0.00012913,2]
[346292246,1734876636060,-500.0,0.00012913,2]
[346292248,1734876636070,-500.0,0.00012913,2]
[346292250,1734876636080,-500.0,0.00012913,2]
[346292253,1734876636089,-500.0,0.00012913,2]
[346292255,1734876636099,-500.0,0.00012913,2]
[346292257,1734876636109,-500.0,0.00012913,2]
[346292259,1734876636119,-500.0,0.00012913,2]
[346292261,1734876636128,-500.0,0.00012913,2]
[346292263,1734876636137,-500.0,0.00012913,2]
[346292265,1734876636147,-500.0,0.00012913,2]
[346292267,1734876636156,-500.0,0.00012913,2]
[346292269,1734876636166,-500.0,0.00012913,2]
[346292271,1734876636175,-500.0,0.00012913,2]
[346292273,1734876636187,-400.28766148,0.00012913,2]
[346292274,1734876636196,-500.0,0.00012913,2]
[346292276,1734876636207,-500.0,0.00012913,2]
[346292279,1734876636220,-500.0,0.00012913,2]
[346292281,1734876636229,-500.0,0.00012913,2]
[346292283,1734876636239,-500.0,0.00012913,2]
[346292285,1734876636251,-500.0,0.00012913,2]
[346292287,1734876636260,-500.0,0.00012913,2]
[346292289,1734876636270,-500.0,0.00012913,2]
[346292291,1734876636281,-500.0,0.00012913,2]
[346292293,1734876636290,-500.0,0.00012913,2]
[346292295,1734876636300,-500.0,0.00012913,2]
[346292297,1734876636309,-500.0,0.00012913,2]
[346292299,1734876636319,-500.0,0.00012913,2]
[346292301,1734876636329,-500.0,0.00012913,2]
[346292303,1734876636338,-500.0,0.00012913,2]
[346292305,1734876636348,-500.0,0.00012913,2]
[346292307,1734876636357,-500.0,0.00012913,2]
[346292309,1734876636368,-500.0,0.00012913,2]
[346292311,1734876636378,-500.0,0.00012913,2]
[346292313,1734876636388,-500.0,0.00012913,2]
[346292315,1734876636398,-500.0,0.00012913,2]
[346292317,1734876636408,-500.0,0.00012913,2]
[346292319,1734876636418,-440.66259019,0.00012913,2]
[346292321,1734876636433,-500.0,0.00012913,2]
[346292323,1734876636443,-500.0,0.00012913,2]
[346292325,1734876636453,-500.0,0.00012913,2]
[346292327,1734876636464,-500.0,0.00012913,2]
[346292329,1734876636473,-500.0,0.00012913,2]
[346292331,1734876636484,-500.0,0.00012913,2]
[346292333,1734876636494,-300.0,0.00012913,2]
[346292335,1734876636504,-150.0,0.00012914,2]
[346292337,1734876636514,-2091.0,0.00012914,2]
[346292340,1734876636524,-533.0,0.00012914,2]
[346292341,1734876636535,-2334.0,0.00012914,2]
[346292344,1734876636545,-34484.0,0.00012914,2]
[346292346,1734876636554,-191.947,0.00012973,2]
[346292348,1734876636564,-1566.42,0.0001299,2]
[346292350,1734876636573,-279.42908937,0.00012998,2]
[346292352,1734876636583,-108356.96220728,0.00012999,5]
[346292354,1734876636596,-166.89715187,0.00012999,2]
[346292356,1734876636606,-1502.34533681,0.00013,2]
[346292357,1734876636615,-188401.95790909,0.00013,2]
[346292358,1734876636640,-950.473592,0.00013,2]
[346292472,1734876637899,-24052.75006252,0.00013,2]
[346292475,1734876637911,-556.48166134,0.00013,2]
[346292477,1734876637927,-1295.73728711,0.00013,2]
[346292480,1734876637943,-1379.9999995,0.00013,2]
[346292482,1734876637954,-1446.2725006,0.00013,2]
[346292669,1734876640001,-1752.5,0.00013,2]
[346292671,1734876640012,-9084.26833866,0.00013,2]
[346293267,1734876646069,-12387.29703623,0.00013,2]
[346293938,1734877575603,10000.0,0.00022,120]
[346293939,1734877582805,3022.0,0.00022,120]
[346293982,1734877747567,-247.647,0.0001235,2]
[346293983,1734877747594,-832.87783983,0.000125,2]
[346293984,1734877747622,-154.6367149,0.00012869,2]
[346293985,1734877747648,-166.17184151,0.000129,2]
[346293986,1734877747674,-2335.92319035,0.000129,2]
[346293987,1734877747701,-300.0,0.00012952,2]
[346293988,1734877747729,-300.0,0.00012952,2]
[346293989,1734877747759,-500.0,0.00012953,2]
[346293990,1734877747787,-500.0,0.00012953,2]
[346293991,1734877747817,-500.0,0.00012953,2]
[346293992,1734877747845,-500.0,0.00012953,2]
[346293993,1734877747874,-486.37529501,0.00012953,2]
[346293994,1734877747902,-500.0,0.00012953,2]
[346293995,1734877747930,-500.0,0.00012953,2]
[346293996,1734877747957,-500.0,0.00012953,2]
[346293997,1734877747986,-170.75105804,0.00012953,2]
[346293998,1734877748013,-533.0,0.00012954,2]
[346293999,1734877748041,-2360.0,0.00012954,2]
[346294000,1734877748070,-34484.0,0.00012954,2]
[346294001,1734877748097,-181.557,0.00012973,2]
[346294002,1734877748126,-152.0,0.00012997,2]
[346294003,1734877748155,-195.60036256,0.00012999,2]
[346294004,1734877748175,-247.647,0.00013,2]
[346294005,1734877748186,-832.87783983,0.00013,2]
[346294006,1734877748203,-154.6367149,0.00013,2]
[346294007,1734877748215,-166.17184151,0.00013,2]
[346294008,1734877748226,-2335.92319035,0.00013,2]
[346294009,1734877748238,-300.0,0.00013,2]
[346294010,1734877748249,-300.0,0.00013,2]
[346294011,1734877748265,-500.0,0.00013,2]
[346294012,1734877748305,-500.0,0.00013,2]
[346294013,1734877748326,-500.0,0.00013,2]
[346294014,1734877748343,-500.0,0.00013,2]
[346294015,1734877748359,-486.37529501,0.00013,2]
[346294016,1734877748371,-500.0,0.00013,2]
[346294017,1734877748382,-500.0,0.00013,2]
[346294018,1734877748394,-500.0,0.00013,2]
[346294019,1734877748405,-170.75105804,0.00013,2]
[346294020,1734877748422,-533.0,0.00013,2]
[346294021,1734877748439,-2360.0,0.00013,2]
[346294022,1734877748450,-34484.0,0.00013,2]
[346294023,1734877748467,-181.557,0.00013,2]
[346294024,1734877748483,-152.0,0.00013,2]
[346294025,1734877748497,-195.60036256,0.00013,2]
[346294026,1734877748513,-414927.9193956,0.00013,2]
[346294054,1734877833055,-600.0,0.0001287,2]
[346294080,1734877838174,-1551.7069191,0.0001287,2]
[346294082,1734877838183,-300.0,0.00012952,2]
[346294084,1734877838193,-300.0,0.00012952,2]
[346294086,1734877838202,-181.11812705,0.00012953,2]
[346294088,1734877838214,-318.88187295,0.00012953,2]
[346294090,1734877838223,-127.32645784,0.00012953,2]
[346294098,1734877838286,-372.67354216,0.00012953,2]
[346294101,1734877838296,-500.0,0.00012953,2]
[346294103,1734877838305,-500.0,0.00012953,2]
[346294107,1734877838314,-500.0,0.00012953,2]
[346294110,1734877838323,-500.0,0.00012953,2]
[346294113,1734877838332,-520.60071908,0.00012953,2]
[346294116,1734877838342,-562.1147296,0.00012953,2]
[346294119,1734877838351,-17529.47817307,0.00013,2]
[346294122,1734877838362,-19173.69278795,0.00013,2]
[346294615,1734877843171,-500.77511268,0.00012999,2]
[346294617,1734877843181,-5949.22488232,0.00013,2]
[346294671,1734877843698,-594.90275024,0.00013,2]
[346294683,1734877843797,-955359.83792626,0.00013,2]
[346294685,1734877843809,-1030.0,0.00013,2]
[346294701,1734877844013,-8643.7132632,0.00013,2]
[346294938,1734877846286,-9902.51716454,0.00013,2]
[346295781,1734878355481,4847.089,0.0001,2]
[346295790,1734878968590,160.0,0.0001,14]
[346295825,1734879032675,-257.987,0.0001235,2]
[346295827,1734879032685,-251.64004119,0.00012823,2]
[346295832,1734879032726,-7759.76450446,0.00012823,2]
[346295833,1734879032736,-1000.0,0.0001285,2]
[346295835,1734879032746,-300.0,0.00012867,2]
[346295837,1734879032756,-286.2839226,0.00012869,2]
[346295839,1734879032766,-300.0,0.00012869,2]
[346295841,1734879032775,-1000.0,0.0001287,2]
[346295843,1734879032785,-1000.0,0.00012877,2]
[346295845,1734879032794,-816.71190155,0.00012896,2]
[346295847,1734879032810,-183.28809845,0.00012896,2]
[346295849,1734879032820,-4225.49618786,0.000129,2]
[346295851,1734879032833,-1000.0,0.00012902,2]
[346295853,1734879032843,-296.90571369,0.00012912,2]
[346295856,1734879032866,-703.09428631,0.00012912,2]
[346295857,1734879032875,-1000.0,0.00012916,2]
[346295859,1734879032885,-1000.0,0.0001293,2]
[346295861,1734879032894,-500.0,0.00012955,2]
[346295863,1734879032904,-500.0,0.00012955,2]
[346295865,1734879032913,-500.0,0.00012955,2]
[346295867,1734879032922,-414.7628653,0.00012955,2]
[346295868,1734879032932,-150.0,0.00012956,2]
[346295870,1734879032941,-34484.0,0.00012956,2]
[346295872,1734879032950,-534.0,0.00012956,2]
[346295874,1734879032959,-2140.0,0.00012956,2]
[346295875,1734879032969,-2362.0,0.00012956,2]
[346295877,1734879032978,-1000.0,0.00012978,2]
[346295879,1734879032988,-1000.0,0.00012982,2]
[346295881,1734879032998,-152.0,0.00012992,2]
[346295883,1734879033008,-252216.70568728,0.00013,2]
[346295885,1734879033017,-340.5746815,0.00013,2]
[346295887,1734879033029,-301.10716103,0.00013,2]
[346296374,1734879038294,-1358.31815747,0.00013,2]
[346296376,1734879038303,-2000.0,0.00013,2]
[346296378,1734879038313,-2000.0,0.00013,2]
[346296380,1734879038322,-1496.57101069,0.00013,2]
[346296382,1734879038333,-152215.67965223,0.00013,7]
[346296384,1734879038343,-500.0,0.00013,2]
[346296386,1734879038352,-2000.0,0.00013,2]
[346296388,1734879038361,-151.0,0.00013,2]
[346296390,1734879038370,-151.0,0.00013,2]
[346296392,1734879038380,-151.0,0.00013,2]
[346296394,1734879038389,-151.0,0.00013,2]
[346296396,1734879038399,-151.0,0.00013,2]
[346296398,1734879038409,-151.0,0.00013,2]
[346296400,1734879038418,-151.0,0.00013,2]
[346296402,1734879038428,-151.0,0.00013,2]
[346296404,1734879038437,-151.0,0.00013,2]
[346296406,1734879038447,-151.0,0.00013,2]
[346296409,1734879038456,-151.0,0.00013,2]
[346296411,1734879038466,-151.0,0.00013,2]
[346296413,1734879038476,-151.0,0.00013,2]
[346296416,1734879038488,-151.0,0.00013,2]
[346296418,1734879038497,-3200.0,0.00013,2]
[346296422,1734879038507,-500.0,0.00013,2]
[346296425,1734879038516,-151.0,0.00013,2]
[346296428,1734879038527,-150.0,0.00013,2]
[346296430,1734879038536,-1000.0,0.00013016,2]
[346296434,1734879038546,-1000.0,0.00013017,2]
[346296436,1734879038556,-1000.0,0.00013074,2]
[346296439,1734879038567,-1000.0,0.00013075,2]
[346296442,1734879038575,-171.28511282,0.00013079,2]
[346296445,1734879038589,-1000.0,0.0001308,2]
[346296448,1734879038598,-1000.0,0.00013086,2]
[346296451,1734879038607,-306.0,0.000131,2]
[346296454,1734879038616,-153.0,0.000131,2]
[346296457,1734879038625,-306.5852626,0.000131,2]
[346296460,1734879038634,-431.3845326,0.000131,2]
[346296463,1734879038643,-352.1566237,0.000131,2]
[346296466,1734879038653,-151.0,0.000131,2]
[346296469,1734879038661,-151.0,0.000131,2]
[346296472,1734879038670,-801.0,0.000131,4]
[346296474,1734879038680,-153.0,0.00013152,2]
[346296476,1734879038689,-153.0,0.00013152,2]
[346296478,1734879038698,-151.0,0.00013152,2]
[346296480,1734879038708,-151.0,0.00013152,2]
[346296482,1734879038717,-151.0,0.00013152,2]
[346296484,1734879038727,-151.0,0.00013152,2]
[346296486,1734879038736,-151.0,0.00013152,2]
[346296488,1734879038746,-151.0,0.00013152,2]
[346296490,1734879038755,-151.0,0.00013152,2]
[346296492,1734879038764,-151.0,0.00013152,2]
[346296494,1734879038774,-151.0,0.00013152,2]
[346296496,1734879038784,-221.99,0.00013152,2]
[346296498,1734879038793,-151.0,0.000132,2]
[346296500,1734879038802,-153.0,0.000132,2]
[346296502,1734879038811,-171.0,0.00013248,2]
[346296504,1734879038821,-177.2,0.00013248,2]
[346296506,1734879038832,-151.0,0.000133,2]
[346296508,1734879038840,-151.0,0.000133,2]
[346296510,1734879038850,-151.0,0.000134,2]
[346296512,1734879038860,-151.0,0.000135,2]
[346296514,1734879038869,-666.0,0.00013598,2]
[346296516,1734879038878,-2102.33087136,0.00013599,2]
[346296518,1734879038887,-151.0,0.000136,2]
[346296520,1734879038896,-151.0,0.000136,2]
[346296522,1734879038906,-151.0,0.000136,2]
[346296524,1734879038920,-260.54359358,0.00013673,2]
[346296525,1734879038929,-402.9517612,0.00013673,2]
[346296526,1734879038938,-500.0,0.00013673,2]
[346296527,1734879038947,-500.0,0.00013673,2]
[346296528,1734879038956,-359.27331547,0.00013673,2]
[346296529,1734879038966,-500.0,0.00013673,2]
[346296530,1734879038975,-500.0,0.00013673,2]
[346296531,1734879038984,-500.0,0.00013673,2]
[346296532,1734879038994,-500.0,0.00013673,2]
[346296533,1734879039003,-500.0,0.00013673,2]
[346296534,1734879039012,-167.29430593,0.00013673,2]
[346296535,1734879039022,-500.0,0.00013673,2]
[346296536,1734879039031,-500.54994157,0.00013673,2]
[346296537,1734879039040,-500.0,0.00013673,2]
[346296538,1734879039049,-500.0,0.00013673,2]
[346296539,1734879039058,-500.0,0.00013673,2]
[346296540,1734879039068,-500.0,0.00013673,2]
[346296541,1734879039077,-500.0,0.00013673,2]
[346296542,1734879039088,-500.0,0.00013673,2]
[346296543,1734879039097,-500.0,0.00013698,2]
[346296544,1734879039106,-501.59104386,0.00013698,2]
[346296545,1734879039115,-500.0,0.00013698,2]
[346296546,1734879039125,-501.26357368,0.00013698,2]
[346296547,1734879039134,-500.3499789,0.00013698,2]
[346296548,1734879039147,-500.42765598,0.00013698,2]
[346296549,1734879039157,-500.67719492,0.00013698,2]
[346296550,1734879039167,-500.60432043,0.00013698,2]